[Event "*** Titled Tuesday Blitz"]
[Site "Chess.com"]
[Date "2021.04.06"]
[Round "8"]
[White "guillembaches"]
[Black "biostatistician"]
[Result "1-0"]
[WhiteElo "2514"]
[BlackElo "2608"]
[TimeControl "180+1"]
[EndTime "11:24:14 PDT"]
[Termination "guillembaches won by resignation"]

1. e4 {[%clk 0:03:00.9]} 1... e6 {[%clk 0:02:59.8]} 2. d4 {[%clk 0:03:01.3]}
2... d5 {[%clk 0:03:00.7]} 3. exd5 {[%clk 0:03:01.9]} 3... exd5 {[%clk
0:03:00.9]} 4. Nf3 {[%clk 0:03:02.6]} 4... Nf6 {[%clk 0:03:01.8]} 5. Bd3 {[%clk
0:03:02.9]} 5... Be7 {[%clk 0:03:02.1]} 6. O-O {[%clk 0:03:02.8]} 6... Bg4
{[%clk 0:03:02.7]} 7. Bg5 {[%clk 0:03:02.9]} 7... O-O {[%clk 0:03:02.1]} 8. Nbd2
{[%clk 0:03:03.3]} 8... Nbd7 {[%clk 0:02:58.1]} 9. c3 {[%clk 0:03:03.2]} 9... c6
{[%clk 0:02:57.9]} 10. Qc2 {[%clk 0:03:03.1]} 10... Bh5 {[%clk 0:02:57.4]} 11.
Rae1 {[%clk 0:03:00.9]} 11... Bg6 {[%clk 0:02:56.5]} 12. Ne5 {[%clk 0:03:01]}
12... Nxe5 {[%clk 0:02:56.4]} 13. dxe5 {[%clk 0:03:01.7]} 13... Bxd3 {[%clk
0:02:56.1]} 14. Qxd3 {[%clk 0:03:01.3]} 14... Nd7 {[%clk 0:02:54.7]} 15. Bxe7
{[%clk 0:03:00.6]} 15... Qxe7 {[%clk 0:02:55.6]} 16. f4 {[%clk 0:03:00.7]} 16...
Rae8 {[%clk 0:02:48.9]} 17. Nb3 {[%clk 0:02:50.9]} 17... Nc5 {[%clk 0:02:38.3]}
18. Nxc5 {[%clk 0:02:44.7]} 18... Qxc5+ {[%clk 0:02:39.2]} 19. Kh1 {[%clk
0:02:44.9]} 19... Re7 {[%clk 0:02:33.3]} 20. f5 {[%clk 0:02:31.5]} 20... Rfe8
{[%clk 0:02:33]} 21. f6 {[%clk 0:02:30]} 21... Rxe5 {[%clk 0:02:32.1]} 22. Rxe5
{[%clk 0:02:29.8]} 22... Rxe5 {[%clk 0:02:32.6]} 23. Qg3 {[%clk 0:02:29.2]} 1-0

[Event "*** Titled Tuesday Blitz"]
[Site "Chess.com"]
[Date "2021.04.06"]
[Round "8"]
[White "Yaryi_sergey"]
[Black "tteshan"]
[Result "1-0"]
[WhiteElo "2511"]
[BlackElo "2304"]
[TimeControl "180+1"]
[EndTime "11:24:29 PDT"]
[Termination "Yaryi_sergey won by resignation"]

1. Nf3 {[%clk 0:02:58.9]} 1... Nf6 {[%clk 0:02:55.4]} 2. d4 {[%clk 0:02:58.6]}
2... d5 {[%clk 0:02:54.5]} 3. g3 {[%clk 0:02:59.5]} 3... c5 {[%clk 0:02:51.5]}
4. Bg2 {[%clk 0:03:00]} 4... Nc6 {[%clk 0:02:51.3]} 5. O-O {[%clk 0:02:59.4]}
5... Bf5 {[%clk 0:02:51.2]} 6. c3 {[%clk 0:02:58.7]} 6... h6 {[%clk 0:02:48.5]}
7. dxc5 {[%clk 0:02:58.6]} 7... a5 {[%clk 0:02:45.5]} 8. Nd4 {[%clk 0:02:58.4]}
8... Bh7 {[%clk 0:02:43.8]} 9. Qb3 {[%clk 0:02:56.3]} 9... e5 {[%clk 0:02:24.5]}
10. Qxb7 {[%clk 0:02:55]} 10... Rc8 {[%clk 0:02:06]} 11. Nxc6 {[%clk 0:02:54.7]}
11... Qd7 {[%clk 0:01:48.8]} 12. Qxd7+ {[%clk 0:02:52.5]} 12... Nxd7 {[%clk
0:01:49.7]} 13. Nxa5 {[%clk 0:02:52.4]} 13... Nxc5 {[%clk 0:01:49.7]} 14. Bxd5
{[%clk 0:02:49.5]} 14... Bd6 {[%clk 0:01:43.7]} 15. Nb7 {[%clk 0:02:47.3]} 15...
Bb8 {[%clk 0:01:43.3]} 16. Nxc5 {[%clk 0:02:46.6]} 16... Rxc5 {[%clk 0:01:44.2]}
17. c4 {[%clk 0:02:46.7]} 17... Ke7 {[%clk 0:01:43.4]} 18. e4 {[%clk 0:02:45.8]}
18... Rhc8 {[%clk 0:01:42.7]} 19. b3 {[%clk 0:02:45.2]} 19... f5 {[%clk
0:01:42.3]} 20. Ba3 {[%clk 0:02:45.1]} 1-0

[Event "*** Titled Tuesday Blitz"]
[Site "Chess.com"]
[Date "2021.04.06"]
[Round "8"]
[White "Flopezin"]
[Black "Ural_bogatyr"]
[Result "0-1"]
[WhiteElo "2338"]
[BlackElo "2461"]
[TimeControl "180+1"]
[EndTime "11:24:43 PDT"]
[Termination "Ural_bogatyr won by resignation"]

1. c4 {[%clk 0:03:00.9]} 1... Nf6 {[%clk 0:03:00]} 2. Nc3 {[%clk 0:03:01.4]}
2... e6 {[%clk 0:03:00.2]} 3. e4 {[%clk 0:03:02]} 3... d5 {[%clk 0:03:00.7]} 4.
cxd5 {[%clk 0:03:01.1]} 4... exd5 {[%clk 0:03:00.8]} 5. e5 {[%clk 0:03:02]} 5...
Ne4 {[%clk 0:03:01.4]} 6. Nf3 {[%clk 0:03:02.5]} 6... Nc6 {[%clk 0:03:00.2]} 7.
Bb5 {[%clk 0:03:01.4]} 7... Bc5 {[%clk 0:02:55.6]} 8. O-O {[%clk 0:02:58.4]}
8... O-O {[%clk 0:02:54.3]} 9. Qe2 {[%clk 0:02:57.3]} 9... Bf5 {[%clk
0:02:51.9]} 10. d3 {[%clk 0:02:28.2]} 10... Nxc3 {[%clk 0:02:48.6]} 11. bxc3
{[%clk 0:02:29.1]} 11... d4 {[%clk 0:02:48.7]} 12. Bxc6 {[%clk 0:02:15.1]} 12...
bxc6 {[%clk 0:02:49.6]} 13. cxd4 {[%clk 0:02:14.8]} 13... Bxd4 {[%clk
0:02:48.4]} 14. Rb1 {[%clk 0:02:07.6]} 14... Bxd3 {[%clk 0:02:46.4]} 15. Qd2
{[%clk 0:01:52.7]} 15... Bxf1 {[%clk 0:02:45]} 16. Kxf1 {[%clk 0:01:51.7]} 16...
c5 {[%clk 0:02:42.6]} 17. Ba3 {[%clk 0:01:51.1]} 17... Re8 {[%clk 0:02:38.7]}
18. Qf4 {[%clk 0:01:48.8]} 18... Qd5 {[%clk 0:02:33.8]} 19. Rd1 {[%clk
0:01:44.6]} 19... Qc4+ {[%clk 0:02:31.7]} 20. Kg1 {[%clk 0:01:42.1]} 20... Bxf2+
{[%clk 0:02:31]} 21. Kxf2 {[%clk 0:01:41.9]} 21... Qxf4 {[%clk 0:02:30.9]} 0-1

[Event "*** Titled Tuesday Blitz"]
[Site "Chess.com"]
[Date "2021.04.06"]
[Round "8"]
[White "serena-maria"]
[Black "HouseOfDurin"]
[Result "1-0"]
[WhiteElo "2346"]
[BlackElo "2157"]
[TimeControl "180+1"]
[EndTime "11:25:11 PDT"]
[Termination "serena-maria won by resignation"]

1. Nf3 {[%clk 0:02:59.8]} 1... c5 {[%clk 0:03:00]} 2. c4 {[%clk 0:02:57.6]} 2...
Nc6 {[%clk 0:02:59.8]} 3. d4 {[%clk 0:02:56.1]} 3... cxd4 {[%clk 0:02:58.5]} 4.
Nxd4 {[%clk 0:02:57]} 4... e5 {[%clk 0:02:55]} 5. Nxc6 {[%clk 0:02:55.4]} 5...
bxc6 {[%clk 0:02:55.9]} 6. Nc3 {[%clk 0:02:54.1]} 6... Nf6 {[%clk 0:02:55]} 7.
g3 {[%clk 0:02:51.7]} 7... Bb4 {[%clk 0:02:50.1]} 8. Bg2 {[%clk 0:02:49.1]} 8...
O-O {[%clk 0:02:45.5]} 9. O-O {[%clk 0:02:44.3]} 9... Bxc3 {[%clk 0:02:43.7]}
10. bxc3 {[%clk 0:02:45.2]} 10... d5 {[%clk 0:02:43.6]} 11. cxd5 {[%clk
0:02:44.6]} 11... cxd5 {[%clk 0:02:44.5]} 12. c4 {[%clk 0:02:44.5]} 12... Be6
{[%clk 0:02:43.1]} 13. Bg5 {[%clk 0:02:44.3]} 13... e4 {[%clk 0:02:27.2]} 14.
cxd5 {[%clk 0:02:39]} 14... Qxd5 {[%clk 0:02:23.5]} 15. Bxf6 {[%clk 0:02:39.1]}
15... gxf6 {[%clk 0:02:21]} 16. Qa4 {[%clk 0:02:37.4]} 16... f5 {[%clk
0:02:07.3]} 17. Rfd1 {[%clk 0:02:36.2]} 17... Qe5 {[%clk 0:02:07]} 18. Rac1
{[%clk 0:02:20]} 18... a5 {[%clk 0:02:03.2]} 19. Qa3 {[%clk 0:02:15]} 19... Rac8
{[%clk 0:01:58.2]} 20. Qe7 {[%clk 0:02:09.3]} 20... Rfe8 {[%clk 0:01:41.4]} 21.
Rxc8 {[%clk 0:02:03.9]} 1-0

[Event "*** Titled Tuesday Blitz"]
[Site "Chess.com"]
[Date "2021.04.06"]
[Round "8"]
[White "Rodchenkov_Vitalij"]
[Black "shreyansshah123"]
[Result "1-0"]
[WhiteElo "2135"]
[BlackElo "1637"]
[TimeControl "180+1"]
[EndTime "11:25:21 PDT"]
[Termination "Rodchenkov_Vitalij won by resignation"]

1. Nf3 {[%clk 0:03:00.9]} 1... Nf6 {[%clk 0:02:58.3]} 2. c4 {[%clk 0:03:00.3]}
2... e6 {[%clk 0:02:57.2]} 3. g3 {[%clk 0:02:58.6]} 3... d5 {[%clk 0:02:58.1]}
4. d4 {[%clk 0:02:57.5]} 4... c6 {[%clk 0:02:56]} 5. Bg2 {[%clk 0:02:57.4]} 5...
dxc4 {[%clk 0:02:54.4]} 6. a4 {[%clk 0:02:52.9]} 6... Bb4+ {[%clk 0:02:53.1]} 7.
Bd2 {[%clk 0:02:52.3]} 7... Bxd2+ {[%clk 0:02:52.9]} 8. Nbxd2 {[%clk 0:02:51.1]}
8... Qa5 {[%clk 0:02:50.3]} 9. O-O {[%clk 0:02:46.8]} 9... O-O {[%clk 0:02:49]}
10. Nxc4 {[%clk 0:02:45.2]} 10... Qc7 {[%clk 0:02:47.8]} 11. Qc2 {[%clk
0:02:37.4]} 11... Nbd7 {[%clk 0:02:42.2]} 12. b4 {[%clk 0:02:36]} 12... Nb6
{[%clk 0:02:40.6]} 13. Nce5 {[%clk 0:02:34.7]} 13... Nbd7 {[%clk 0:02:36.4]} 14.
b5 {[%clk 0:02:31.9]} 14... Nxe5 {[%clk 0:02:35.5]} 15. dxe5 {[%clk 0:02:25.5]}
15... Nd7 {[%clk 0:02:34.4]} 16. Rac1 {[%clk 0:02:20.2]} 16... c5 {[%clk
0:02:33.9]} 17. Qe4 {[%clk 0:02:14.2]} 17... f5 {[%clk 0:02:26.8]} 18. exf6
{[%clk 0:02:12.7]} 18... Nxf6 {[%clk 0:02:23.6]} 19. Qc4 {[%clk 0:02:10.3]}
19... b6 {[%clk 0:02:18.3]} 20. Ne5 {[%clk 0:02:04.7]} 20... Rb8 {[%clk
0:02:14.7]} 21. Nc6 {[%clk 0:02:00.5]} 21... Rb7 {[%clk 0:02:14.5]} 22. Rfd1
{[%clk 0:01:55.2]} 22... Bd7 {[%clk 0:02:12.9]} 23. a5 {[%clk 0:01:48.3]} 23...
Bxc6 {[%clk 0:02:07]} 24. Qxe6+ {[%clk 0:01:47.3]} 24... Kh8 {[%clk 0:02:06.6]}
25. Qxc6 {[%clk 0:01:43.5]} 25... Qf7 {[%clk 0:02:01.7]} 26. Qxb7 {[%clk
0:01:40.5]} 1-0

[Event "*** Titled Tuesday Blitz"]
[Site "Chess.com"]
[Date "2021.04.06"]
[Round "8"]
[White "Shahaliyev"]
[Black "marianokar"]
[Result "0-1"]
[WhiteElo "2645"]
[BlackElo "2550"]
[TimeControl "180+1"]
[EndTime "11:25:22 PDT"]
[Termination "marianokar won by resignation"]

1. Nf3 {[%clk 0:03:00.9]} 1... Nf6 {[%clk 0:02:58.6]} 2. c4 {[%clk 0:03:00.9]}
2... e6 {[%clk 0:02:58.6]} 3. Nc3 {[%clk 0:03:01.1]} 3... d5 {[%clk 0:02:59.2]}
4. cxd5 {[%clk 0:03:01.4]} 4... exd5 {[%clk 0:02:59]} 5. d4 {[%clk 0:03:02.3]}
5... c6 {[%clk 0:02:56]} 6. Bf4 {[%clk 0:03:02.7]} 6... Bf5 {[%clk 0:02:55.8]}
7. Nh4 {[%clk 0:03:01.7]} 7... Bg6 {[%clk 0:02:52.9]} 8. Nxg6 {[%clk 0:03:01.5]}
8... hxg6 {[%clk 0:02:53.8]} 9. Qb3 {[%clk 0:03:00.4]} 9... Qb6 {[%clk 0:02:47]}
10. Qxb6 {[%clk 0:02:59.8]} 10... axb6 {[%clk 0:02:46.9]} 11. h3 {[%clk
0:02:57]} 11... Nbd7 {[%clk 0:02:33.8]} 12. e3 {[%clk 0:02:56.7]} 12... b5
{[%clk 0:02:31.8]} 13. Bd3 {[%clk 0:02:56.7]} 13... Nb6 {[%clk 0:02:22.8]} 14.
b3 {[%clk 0:02:51.3]} 14... Bb4 {[%clk 0:01:56.8]} 15. Kd2 {[%clk 0:02:51.4]}
15... Ne4+ {[%clk 0:01:57]} 16. Bxe4 {[%clk 0:02:52.1]} 16... dxe4 {[%clk
0:01:57.6]} 17. Kc2 {[%clk 0:02:53]} 17... Bxc3 {[%clk 0:01:57.4]} 18. Kxc3
{[%clk 0:02:53.9]} 18... Nd5+ {[%clk 0:01:58]} 19. Kd2 {[%clk 0:02:54.1]} 19...
b4 {[%clk 0:01:41.4]} 20. f3 {[%clk 0:02:21.1]} 20... f5 {[%clk 0:01:40.8]} 21.
fxe4 {[%clk 0:02:12.6]} 21... fxe4 {[%clk 0:01:40.5]} 22. Be5 {[%clk 0:02:13]}
22... O-O {[%clk 0:01:35.2]} 23. Rhf1 {[%clk 0:02:12.9]} 23... Rxf1 {[%clk
0:01:32.2]} 24. Rxf1 {[%clk 0:02:13.8]} 24... Rxa2+ {[%clk 0:01:32.6]} 25. Kc1
{[%clk 0:02:14.4]} 25... Ra1+ {[%clk 0:01:32]} 0-1

[Event "*** Titled Tuesday Blitz"]
[Site "Chess.com"]
[Date "2021.04.06"]
[Round "8"]
[White "The_filthy"]
[Black "Semetey"]
[Result "0-1"]
[WhiteElo "2377"]
[BlackElo "2532"]
[TimeControl "180+1"]
[EndTime "11:25:22 PDT"]
[Termination "Semetey won by resignation"]

1. e4 {[%clk 0:03:00.9]} 1... c5 {[%clk 0:02:59.1]} 2. Nf3 {[%clk 0:03:01.3]}
2... d6 {[%clk 0:02:59.6]} 3. d4 {[%clk 0:03:01.6]} 3... cxd4 {[%clk 0:03:00.5]}
4. Nxd4 {[%clk 0:03:02.5]} 4... Nf6 {[%clk 0:03:01.1]} 5. Nc3 {[%clk 0:03:03.1]}
5... a6 {[%clk 0:03:01.6]} 6. Be3 {[%clk 0:03:03.2]} 6... e5 {[%clk 0:03:01.9]}
7. Nb3 {[%clk 0:03:02.8]} 7... Be6 {[%clk 0:03:02.5]} 8. f3 {[%clk 0:03:03.3]}
8... Be7 {[%clk 0:03:02.4]} 9. Qd2 {[%clk 0:03:03.5]} 9... O-O {[%clk
0:03:02.6]} 10. g4 {[%clk 0:03:03.7]} 10... d5 {[%clk 0:03:02.6]} 11. exd5
{[%clk 0:03:01.7]} 11... Nxd5 {[%clk 0:03:02.2]} 12. Nxd5 {[%clk 0:03:02.1]}
12... Bxd5 {[%clk 0:03:02.1]} 13. O-O-O {[%clk 0:03:02.1]} 13... Bxf3 {[%clk
0:03:01.7]} 14. Qxd8 {[%clk 0:03:01.4]} 14... Rxd8 {[%clk 0:03:01.3]} 15. Rxd8+
{[%clk 0:03:00.9]} 15... Bxd8 {[%clk 0:03:00]} 16. Rg1 {[%clk 0:03:01.5]} 16...
Nc6 {[%clk 0:02:58.6]} 17. Nc5 {[%clk 0:02:56.7]} 17... Nd4 {[%clk 0:02:56]} 18.
Rg3 {[%clk 0:02:51.8]} 18... Bc6 {[%clk 0:02:48.2]} 19. c3 {[%clk 0:02:49.5]}
19... Nb5 {[%clk 0:02:47.5]} 20. a4 {[%clk 0:02:33.8]} 20... Nd6 {[%clk
0:02:44]} 21. Nd3 {[%clk 0:02:07.6]} 21... Ne4 {[%clk 0:02:41.2]} 22. Rg1 {[%clk
0:02:06.3]} 22... Bxa4 {[%clk 0:02:39.7]} 23. Nxe5 {[%clk 0:02:06.5]} 23... Bc7
{[%clk 0:02:39.4]} 24. Nf3 {[%clk 0:02:02.2]} 24... Re8 {[%clk 0:02:35.7]} 25.
Bd3 {[%clk 0:01:57.8]} 25... Nxc3 {[%clk 0:02:35.1]} 26. Re1 {[%clk 0:01:52.8]}
26... Na2+ {[%clk 0:02:27.3]} 27. Kb1 {[%clk 0:01:52.2]} 27... Nb4 {[%clk
0:02:27.8]} 28. Bc4 {[%clk 0:01:48.8]} 28... b5 {[%clk 0:02:23.3]} 29. Bf1
{[%clk 0:01:33.2]} 29... Nc2 {[%clk 0:02:19.4]} 0-1

[Event "*** Titled Tuesday Blitz"]
[Site "Chess.com"]
[Date "2021.04.06"]
[Round "8"]
[White "NTBT_DHS"]
[Black "Eliwood44"]
[Result "1-0"]
[WhiteElo "2718"]
[BlackElo "2512"]
[TimeControl "180+1"]
[EndTime "11:25:24 PDT"]
[Termination "NTBT_DHS won by resignation"]

1. d4 {[%clk 0:03:00.9]} 1... Nf6 {[%clk 0:02:51.5]} 2. c4 {[%clk 0:03:01.8]}
2... e6 {[%clk 0:02:51.5]} 3. Nf3 {[%clk 0:03:02.7]} 3... d5 {[%clk 0:02:51.2]}
4. g3 {[%clk 0:03:03.2]} 4... Be7 {[%clk 0:02:50]} 5. Bg2 {[%clk 0:03:03.7]}
5... O-O {[%clk 0:02:49.8]} 6. O-O {[%clk 0:03:04.6]} 6... dxc4 {[%clk
0:02:49.3]} 7. Qc2 {[%clk 0:03:05.5]} 7... a6 {[%clk 0:02:49.1]} 8. Qxc4 {[%clk
0:03:05.4]} 8... b5 {[%clk 0:02:46.5]} 9. Qc2 {[%clk 0:03:06]} 9... Bb7 {[%clk
0:02:47.1]} 10. Nbd2 {[%clk 0:03:05]} 10... Nbd7 {[%clk 0:02:42.5]} 11. Nb3
{[%clk 0:03:01.8]} 11... c5 {[%clk 0:02:40]} 12. Nxc5 {[%clk 0:02:59.3]} 12...
Nxc5 {[%clk 0:02:35.2]} 13. dxc5 {[%clk 0:02:59.6]} 13... b4 {[%clk 0:02:22.9]}
14. Be3 {[%clk 0:02:42.7]} 14... Nd5 {[%clk 0:02:10.3]} 15. Bd4 {[%clk
0:02:41.6]} 15... Rc8 {[%clk 0:02:07.3]} 16. Rfd1 {[%clk 0:02:38.7]} 16... Qa5
{[%clk 0:01:58.7]} 17. Rac1 {[%clk 0:02:25.8]} 17... Qxa2 {[%clk 0:01:42.5]} 18.
Ra1 {[%clk 0:02:22.1]} 18... b3 {[%clk 0:01:37.7]} 19. Qd2 {[%clk 0:02:16.9]}
19... Bc6 {[%clk 0:01:26.3]} 20. Rxa2 {[%clk 0:02:13.7]} 20... bxa2 {[%clk
0:01:27.2]} 21. Ra1 {[%clk 0:02:13.8]} 21... Rb8 {[%clk 0:01:26]} 22. Rxa2
{[%clk 0:02:12.9]} 22... Rb3 {[%clk 0:01:23.3]} 23. Ne5 {[%clk 0:02:12.2]} 1-0

[Event "*** Titled Tuesday Blitz"]
[Site "Chess.com"]
[Date "2021.04.06"]
[Round "8"]
[White "EvgenyT"]
[Black "ENajer77"]
[Result "0-1"]
[WhiteElo "2905"]
[BlackElo "2675"]
[TimeControl "180+1"]
[EndTime "11:25:37 PDT"]
[Termination "ENajer77 won by resignation"]

1. c4 {[%clk 0:03:00.9]} 1... e5 {[%clk 0:02:59.3]} 2. g3 {[%clk 0:02:59.1]}
2... d6 {[%clk 0:02:57.4]} 3. Nc3 {[%clk 0:02:57.9]} 3... f5 {[%clk 0:02:56.7]}
4. d4 {[%clk 0:02:56.7]} 4... Be7 {[%clk 0:02:56.4]} 5. Bg2 {[%clk 0:02:51]}
5... Nf6 {[%clk 0:02:52.9]} 6. Nf3 {[%clk 0:02:45.4]} 6... e4 {[%clk 0:02:46.4]}
7. Ng5 {[%clk 0:02:44.7]} 7... c6 {[%clk 0:02:26.7]} 8. d5 {[%clk 0:02:39.2]}
8... O-O {[%clk 0:02:24.1]} 9. O-O {[%clk 0:02:33.2]} 9... Na6 {[%clk
0:02:23.9]} 10. Kh1 {[%clk 0:02:14]} 10... Nc7 {[%clk 0:02:18.7]} 11. Nf3 {[%clk
0:02:05.7]} 11... exf3 {[%clk 0:02:00.9]} 12. Bxf3 {[%clk 0:02:05.2]} 12... cxd5
{[%clk 0:01:58.5]} 13. cxd5 {[%clk 0:02:04.9]} 13... Nd7 {[%clk 0:01:58.4]} 14.
Bg2 {[%clk 0:01:58.7]} 14... Bf6 {[%clk 0:01:56.3]} 15. Be3 {[%clk 0:01:56.5]}
15... Ne5 {[%clk 0:01:50.1]} 16. Rc1 {[%clk 0:01:55.3]} 16... Nc4 {[%clk
0:01:47.8]} 17. Bf4 {[%clk 0:01:54.3]} 17... g5 {[%clk 0:01:45.9]} 18. Qb3
{[%clk 0:01:49.2]} 18... Na5 {[%clk 0:01:38.9]} 19. Qb4 {[%clk 0:01:47.6]} 19...
Na6 {[%clk 0:01:36]} 20. Qxd6 {[%clk 0:01:43.7]} 20... gxf4 {[%clk 0:01:36.1]}
21. Qxf4 {[%clk 0:01:43.3]} 21... Bg5 {[%clk 0:01:36.3]} 0-1

[Event "*** Titled Tuesday Blitz"]
[Site "Chess.com"]
[Date "2021.04.06"]
[Round "8"]
[White "louis198"]
[Black "tylityli"]
[Result "1-0"]
[WhiteElo "2558"]
[BlackElo "2344"]
[TimeControl "180+1"]
[EndTime "11:25:43 PDT"]
[Termination "louis198 won by resignation"]

1. d4 {[%clk 0:02:58.2]} 1... Nf6 {[%clk 0:02:59.5]} 2. c4 {[%clk 0:02:59.1]}
2... e6 {[%clk 0:02:58.4]} 3. Nc3 {[%clk 0:02:59.3]} 3... Bb4 {[%clk 0:02:58.1]}
4. Qb3 {[%clk 0:02:59.4]} 4... a5 {[%clk 0:02:57]} 5. a3 {[%clk 0:02:59]} 5...
Bxc3+ {[%clk 0:02:56.7]} 6. Qxc3 {[%clk 0:02:59.1]} 6... d6 {[%clk 0:02:56]} 7.
e3 {[%clk 0:02:55.3]} 7... a4 {[%clk 0:02:56.1]} 8. Bd3 {[%clk 0:02:55.1]} 8...
Qe7 {[%clk 0:02:55.3]} 9. Ne2 {[%clk 0:02:54.2]} 9... e5 {[%clk 0:02:54.5]} 10.
O-O {[%clk 0:02:52.5]} 10... O-O {[%clk 0:02:46.9]} 11. Ng3 {[%clk 0:02:36.9]}
11... e4 {[%clk 0:02:41.6]} 12. Bc2 {[%clk 0:02:31.5]} 12... Bd7 {[%clk
0:02:31.9]} 13. Rd1 {[%clk 0:02:17.7]} 13... b5 {[%clk 0:02:25.1]} 14. cxb5
{[%clk 0:02:11.8]} 14... Bxb5 {[%clk 0:02:24.6]} 15. b3 {[%clk 0:02:10.2]} 15...
Nd5 {[%clk 0:02:10.5]} 16. Qb2 {[%clk 0:02:08]} 16... f5 {[%clk 0:02:10.3]} 17.
bxa4 {[%clk 0:02:04.2]} 17... Bc6 {[%clk 0:01:52]} 18. Bd2 {[%clk 0:01:58.8]}
18... Kh8 {[%clk 0:01:47.8]} 19. a5 {[%clk 0:01:57.4]} 19... Nd7 {[%clk
0:01:36.4]} 20. Rac1 {[%clk 0:01:55.3]} 20... Bb5 {[%clk 0:01:18.3]} 21. Qxb5
{[%clk 0:01:53.4]} 1-0

[Event "*** Titled Tuesday Blitz"]
[Site "Chess.com"]
[Date "2021.04.06"]
[Round "8"]
[White "oogee"]
[Black "kamilianin235"]
[Result "1-0"]
[WhiteElo "2385"]
[BlackElo "2256"]
[TimeControl "180+1"]
[EndTime "11:25:49 PDT"]
[Termination "oogee won by resignation"]

1. d4 {[%clk 0:03:00.9]} 1... d5 {[%clk 0:02:58.6]} 2. c4 {[%clk 0:03:00]} 2...
dxc4 {[%clk 0:02:58.5]} 3. e3 {[%clk 0:02:58.7]} 3... Nf6 {[%clk 0:02:57.2]} 4.
Bxc4 {[%clk 0:02:58.2]} 4... e6 {[%clk 0:02:56.9]} 5. Nf3 {[%clk 0:02:57.3]}
5... c5 {[%clk 0:02:56.2]} 6. O-O {[%clk 0:02:56]} 6... a6 {[%clk 0:02:55.2]} 7.
Nc3 {[%clk 0:02:53.7]} 7... b5 {[%clk 0:02:54]} 8. Bb3 {[%clk 0:02:53.4]} 8...
Nbd7 {[%clk 0:02:53]} 9. d5 {[%clk 0:02:52.6]} 9... exd5 {[%clk 0:02:50.6]} 10.
Nxd5 {[%clk 0:02:51.7]} 10... Bb7 {[%clk 0:02:49.8]} 11. e4 {[%clk 0:02:49.4]}
11... Be7 {[%clk 0:02:34.7]} 12. Nxe7 {[%clk 0:02:46.8]} 12... Qxe7 {[%clk
0:02:33.3]} 13. e5 {[%clk 0:02:46.5]} 13... Ng4 {[%clk 0:02:24.4]} 14. Bg5
{[%clk 0:02:43.1]} 14... Qf8 {[%clk 0:02:07.5]} 15. Re1 {[%clk 0:02:19.2]} 15...
c4 {[%clk 0:01:56.9]} 16. e6 {[%clk 0:02:18.2]} 16... fxe6 {[%clk 0:01:51.6]}
17. Rxe6+ {[%clk 0:02:16.2]} 17... Kf7 {[%clk 0:01:50.2]} 18. Qxd7+ {[%clk
0:02:15.1]} 18... Kg8 {[%clk 0:01:48.2]} 19. Qxb7 {[%clk 0:02:03.2]} 19... cxb3
{[%clk 0:01:43.1]} 20. axb3 {[%clk 0:01:58.9]} 20... h6 {[%clk 0:01:39.6]} 21.
Be7 {[%clk 0:01:54]} 21... Qe8 {[%clk 0:01:35.2]} 22. h3 {[%clk 0:01:45]} 1-0

[Event "*** Titled Tuesday Blitz"]
[Site "Chess.com"]
[Date "2021.04.06"]
[Round "8"]
[White "vinniethepooh"]
[Black "AlexSuv"]
[Result "1-0"]
[WhiteElo "2729"]
[BlackElo "2574"]
[TimeControl "180+1"]
[EndTime "11:25:55 PDT"]
[Termination "vinniethepooh won by resignation"]

1. d4 {[%clk 0:03:00.9]} 1... Nf6 {[%clk 0:02:59.5]} 2. c4 {[%clk 0:03:01.4]}
2... e6 {[%clk 0:02:59.9]} 3. Nc3 {[%clk 0:03:02]} 3... Bb4 {[%clk 0:02:59.1]}
4. f3 {[%clk 0:03:02.4]} 4... d5 {[%clk 0:02:57.3]} 5. a3 {[%clk 0:03:02.4]}
5... Be7 {[%clk 0:02:49.9]} 6. e4 {[%clk 0:03:02.4]} 6... dxe4 {[%clk
0:02:48.9]} 7. fxe4 {[%clk 0:03:03.3]} 7... e5 {[%clk 0:02:49.5]} 8. d5 {[%clk
0:03:03.6]} 8... a5 {[%clk 0:02:48.5]} 9. Nf3 {[%clk 0:03:03.7]} 9... Bg4 {[%clk
0:02:43.5]} 10. Be3 {[%clk 0:02:59.3]} 10... Nbd7 {[%clk 0:02:28.2]} 11. Be2
{[%clk 0:02:46.1]} 11... Bxf3 {[%clk 0:02:23.8]} 12. Bxf3 {[%clk 0:02:47]} 12...
Bc5 {[%clk 0:02:19.8]} 13. Qd2 {[%clk 0:02:47.4]} 13... b6 {[%clk 0:02:16.4]}
14. O-O {[%clk 0:02:43.9]} 14... O-O {[%clk 0:02:13.9]} 15. Kh1 {[%clk 0:02:35]}
15... a4 {[%clk 0:02:13.9]} 16. Rae1 {[%clk 0:02:29.4]} 16... Bxe3 {[%clk
0:02:13.7]} 17. Rxe3 {[%clk 0:02:28.1]} 17... Nc5 {[%clk 0:02:12.7]} 18. Bd1
{[%clk 0:02:26.1]} 18... Ne8 {[%clk 0:02:09.3]} 19. Rg3 {[%clk 0:02:20.4]} 19...
Nd6 {[%clk 0:02:08.8]} 20. Qh6 {[%clk 0:02:03.2]} 20... g6 {[%clk 0:02:00.8]}
21. Rh3 {[%clk 0:02:00.3]} 21... Re8 {[%clk 0:02:01.3]} 22. Qxh7+ {[%clk
0:01:53.6]} 22... Kf8 {[%clk 0:02:01.8]} 23. Qh8+ {[%clk 0:01:50.3]} 23... Ke7
{[%clk 0:02:01.2]} 24. Qf6+ {[%clk 0:01:50.9]} 24... Kd7 {[%clk 0:02:00.6]} 25.
Bg4+ {[%clk 0:01:51.4]} 25... Nf5 {[%clk 0:01:58.8]} 26. Qc6+ {[%clk 0:01:46]}
26... Ke7 {[%clk 0:01:55.3]} 27. exf5 {[%clk 0:01:46.4]} 27... gxf5 {[%clk
0:01:52.8]} 28. Rxf5 {[%clk 0:01:45.5]} 28... Rg8 {[%clk 0:01:52.2]} 29. Qf6+
{[%clk 0:01:27.7]} 1-0